Cogmind - Beta 16 --- EXPLORER MODE // 2025.12.05 @ 10:02:08 Player: K.K.Y. Result: Destroyed by Autobeam Turret with Autobeam Performance ------------- Evolutions (0) 0 Regions Visited (3) 600 Robots Destroyed (30) 150 Value Destroyed (600) 600 Prototype IDs (1) 20 Alien Tech Used (0) 0 Bonus (0) 0 TOTAL SCORE: 1370 Bonus ------- None Cogmind --------- Core Integrity 0/250 Matter 295/300 Energy 180/180 System Corruption 1% Temperature Cool (12) Movement Treading (480) Ox4 Location -10/Subcaves Parts ------- > --- POWER (1) -------- Meta Core > --- PROPULSION (2+1) - Light Treads > --- UTILITY (3+1) ---- Huge Storage Unit Structural Scanner (+) Sensor Array Improved Terrain Scanner > --- WEAPON (2+1) ----- (None) > --- INVENTORY (25) --- Subdweller Power Source SUBCON Basin (Full) Peak State ------------ > --- POWER ------------ Meta Core > --- PROPULSION ------- Light Treads > --- UTILITY ---------- Huge Storage Unit Structural Scanner Sensor Array Improved Terrain Scanner > --- WEAPON ----------- Beamcaster > --- INVENTORY -------- Subdweller Power Source SUBCON Basin [Rating: 43] Favorites ----------- Power Light Ion Engine Engine Light Ion Engine Power Core Meta Core Propulsion Hover Unit Treads Light Treads Wheel Wheel Hover Unit Hover Unit Flight Unit Flight Unit Utility Improved Terrain Scanner Device Improved Terrain Scanner Storage Huge Storage Unit Processor Terrain Scan Processor Weapon EM Shotgun Energy Gun EM Shotgun Ballistic Gun Assault Rifle Build | -11 -10 -10 -10 ------- Run | Yrd Mat Min Sub Slots Evolved 1 | . 1 . . Power . | . . . . Propulsion . | . . . . Utility 1 | . 1 . . Weapon . | . . . . Parts Attached 27 | 7 11 3 6 Power 4 | 1 1 . 2 Engine 3 | 1 1 . 1 Core 1 | . . . 1 Reactor . | . . . . Propulsion 9 | 3 4 . 2 Treads 2 | . . . 2 Leg . | . . . . Wheel 3 | 3 . . . Hover 2 | . 2 . . Flight 2 | . 2 . . Utility 7 | 1 4 . 2 Device 4 | 1 2 . 1 Storage 1 | . . . 1 Processor 2 | . 2 . . Hackware . | . . . . Protection . | . . . . Artifact . | . . . . Weapon 7 | 2 2 3 . Energy Gun 5 | . 2 3 . Energy Cannon . | . . . . Ballistic Gun 2 | 2 . . . Ballistic Cannon . | . . . . Launcher . | . . . . Special Weapon . | . . . . Impact Weapon . | . . . . Slashing Weapon . | . . . . Piercing Weapon . | . . . . Special Melee Weapon . | . . . . Unidentified Prototypes 1 | . . . 1 Parts Lost 7 | . . . 7 Power 1 | . . . 1 Propulsion 3 | . . . 3 Utility . | . . . . Weapon 3 | . . . 3 Highest Loss Streak 4 | . . . 4 To Critical Strikes . | . . . . Average Backups 3 | 4 3 4 2 Power . | . . . . Propulsion 1 | 1 2 2 . Utility 1 | 1 1 2 1 Weapon . | . . . . Tool/Special . | . . . . Unused Backups 4 | 1 1 2 . Power . | . . . . Propulsion 1 | . 1 . . Utility 2 | 1 . 1 . Weapon 1 | . . 1 . Tool/Special . | . . . . Average Slot Usage (%) 82 | . 85 99 78 Engine 7 | . 12 12 5 Core 3 | . . . 4 Treads 6 | . . . 9 Hover 9 | . 10 25 5 Flight 1 | . 10 . . Device 24 | . 15 25 26 Storage 2 | . . . 3 Processor 8 | . 11 12 6 Energy Gun 16 | . 12 24 15 Ballistic Gun 1 | . 9 . . Peak Build Rating 43 | 8 14 16 43 Average Rating 21 | 3 10 13 26 On Entrance 8 | . 8 13 13 Avg Prop Armor Cover (%) . | . . . . Naked Turns . | . . . . Heaviest Build 94 | 8 11 11 94 Greatest Support 40 | 20 20 12 40 Greatest Overweight (x) 4 | 1 3 . 4 Average Overweight (x) . | . . . . Largest Inventory Capacity 25 | 5 5 5 25 Average Capacity 10 | 5 5 5 13 Most Carried 16 | 5 5 5 16 Average Carried 7 | 4 3 4 8 Final Capacity 25 | 5 5 5 25 Final Carried 16 | 3 4 5 16 Class Distribution -------------------- 53% | Hacker-Mutant 34% | Hacker-Scout 12% | Hacker-Skirmisher Dominant Class ---------------- Hacker-Mutant | -10/Materials Hacker-Scout | -10/Mines Hacker-Mutant | -10/Subcaves Resources | -11 -10 -10 -10 ----------- Run | Yrd Mat Min Sub Matter Collected 755 | 366 254 50 85 Remotely . | . . . . Salvage Created 1114 | 188 487 33 406 Parts 58 | 9 24 3 22 Haulers Intercepted 1 | . 1 . . Recyclers Shooed 1 | . 1 . . Parts Field Recycled . | . . . . Retrieved Matter . | . . . . Parts Self-Destructed . | . . . . Prevented . | . . . . Parts Restored . | . . . . Kills | -11 -10 -10 -10 ------- Run | Yrd Mat Min Sub Combat Hostiles Destroyed 18 | . 6 2 10 Guns 16 | . 6 2 8 AOE 1 | . . . 1 Classes Destroyed 9 | 2 5 . 2 Worker 2 | . 2 . . Tunneler 5 | 4 1 . . Hauler 1 | . 1 . . Recycler 2 | 1 1 . . Watcher 2 | . 2 . . Swarmer 7 | . 2 2 3 Grunt 4 | . 4 . . Sentry 1 | . . . 1 Subdweller 6 | . . . 6 Best Kill Streak 3 | 2 3 2 3 Combat Bots Only 3 | . 3 2 3 Max Kills in Single Turn 2 | 1 1 1 2 Gunslinging . | . . . . Exploded 1 | . . . 1 Melee . | . . . . Uniques/NPCs Destroyed . | . . . . Combat | -11 -10 -10 -10 -------- Run | Yrd Mat Min Sub Hostile Shots Fired 162 | . 53 3 106 Missed 75 | . 30 . 45 Hits 87 | . 23 3 61 Projectile 87 | . 23 3 61 Damage Taken 929 | . 177 15 737 Core 251 | . 35 3 213 Absorbed by Shields . | . . . . Ignored by Resistances 559 | . 102 10 447 Core Remaining (%) 100 | 100 . . . Volleys Fired 73 | 16 28 2 27 Largest 2 | 2 2 2 2 Hottest 120 | 40 90 90 120 Shots Fired 138 | 32 53 4 49 Gun 138 | 32 53 4 49 Cannon . | . . . . Launcher . | . . . . Special . | . . . . Kinetic 68 | 32 36 . . Thermal 9 | . . . 9 Explosive . | . . . . Electromagnetic 61 | . 17 4 40 Robot Hit Streak 37 | 12 20 11 37 Robot Miss Streak 2 | 1 1 . 2 Penetration Max . | . . . . Secondary Targets 2 | . 2 . . Max Gunslinging Chain 1 | . 1 . . Shots Hit Robots 115 | 25 46 3 41 Core Hits 54 | 6 22 3 23 Critical Kills . | . . . . Critical Parts Destroyed . | . . . . Critical Strikes 1 | . . . 1 Burn 1 | . . . 1 Melee Attacks . | . . . . Impact . | . . . . Slashing . | . . . . Piercing . | . . . . Sneak Attacks . | . . . . Combat Hostiles . | . . . . Follow-up Attacks . | . . . . Damage Inflicted 1799 | 286 717 48 748 Guns 1661 | 286 706 39 630 Cannons . | . . . . Explosions 118 | . . . 118 Melee . | . . . . Ramming 20 | . 11 9 . Kinetic 715 | 286 429 . . Thermal 224 | . . . 224 Explosive . | . . . . Electromagnetic 840 | . 277 39 524 Impact . | . . . . Slashing . | . . . . Piercing . | . . . . Highest Corruption 1 | . 1 1 1 Average Corruption 1 | . 1 1 1 Corruption Purged . | . . . . Corruption Blocked . | . . . . Effects 11 | . 2 2 7 Message Errors 3 | . 1 . 2 Matter Fused 1 | . . . 1 Heat Flow Errors 1 | . . . 1 Energy Discharges 4 | . 1 1 2 Misfires 1 | . . . 1 Alerts 1 | . . 1 . Overload Shots . | . . . . Overflow Damage . | . . . . Projectiles . | . . . . Explosions . | . . . . Melee . | . . . . Knockbacks . | . . . . Impact . | . . . . Kinetic . | . . . . Secondary . | . . . . Self-Inflicted Damage 68 | . 5 4 59 Shots 2 | . . . 2 Rammed 2 | . 1 1 . Targets Rammed 2 | . 1 1 . Kicked . | . . . . Crushed . | . . . . Highest Temperature 223 | . 116 72 223 Average Temperature 37 | . 33 39 46 Received Heat Transfer 474 | . 123 . 351 Siege Activations . | . . . . Martial Activations . | . . . . Shielding Activations . | . . . . Robots Disrupted . | . . . . Combat Hostiles . | . . . . Robots Corrupted 1 | . . . 1 Combat Hostiles 1 | . . . 1 Parts Fried 5 | . 1 . 4 Impact Corruptions . | . . . . Robots Melted . | . . . . Combat Hostiles . | . . . . Parts Melted . | . . . . Heat Transferred 409 | . . . 409 Parts Sabotaged . | . . . . Parts Stolen . | . . . . Parts Stripped . | . . . . Power Chain Reactions 2 | . . . 2 Alert | -11 -10 -10 -10 ------- Run | Yrd Mat Min Sub Maximum Alert Level . | . . . . Low Security (%) 100 | 100 100 100 . Level 1 . | . . . . Level 2 . | . . . . Level 3 . | . . . . Level 4 . | . . . . Level 5 . | . . . . High Security . | . . . . Max Security . | . . . . Peak Influence 75 | 5 75 35 . Initial . | . . . . Average 8 | . 17 2 . Influence Increases 423 | 25 193 50 155 Destroy 0b10 Robot/C 240 | . 120 40 80 Destroy 0b10 Robot/NC 60 | 25 35 . . Destroy Leader 46 | . 36 10 . Successful Hack 2 | . 2 . . Lose Combat Pursuer 75 | . . . 75 Influence Decreases 423 | 25 193 50 155 Time Decay 418 | 25 193 50 150 Lost Part 5 | . . . 5 Squads Dispatched . | . . . . Investigation . | . . . . Extermination . | . . . . Reinforcement . | . . . . Assault . | . . . . Garrison . | . . . . Intercept . | . . . . Searches Triggered . | . . . . Construction Impeded . | . . . . Haulers Reinforced . | . . . . Active Scanning Responses . | . . . . Cargo Convoy Interrupts . | . . . . Stealth | -11 -10 -10 -10 --------- Run | Yrd Mat Min Sub Distress Signals 1 | . 1 . . Communications Jammed . | . . . . Distress Signals . | . . . . Times Spotted 33 | . 12 4 17 Peak Tracking Total 6 | . 6 2 5 Tactical Retreats 1 | . . . 1 Traps | -11 -10 -10 -10 ------- Run | Yrd Mat Min Sub Traps Triggered 2 | . 2 . . Indirectly . | . . . . Trap Hack Attempts . | . . . . Triggered . | . . . . Disarmed . | . . . . Reprogrammed . | . . . . Reused . | . . . . Traps Extracted . | . . . . Installed . | . . . . Triggered . | . . . . Machines | -11 -10 -10 -10 ---------- Run | Yrd Mat Min Sub Machines Disabled 1 | . 1 . . Max in Single Turn 1 | . 1 . . Machines Repaired . | . . . . Machines Dismantled . | . . . . Machines Sabotaged . | . . . . Overloaded Fab Kills . | . . . . Hacking | -11 -10 -10 -10 --------- Run | Yrd Mat Min Sub Machines Accessed 6 | . 3 . 3 Terminals 3 | . 3 . . Fabricators . | . . . . Repair Stations . | . . . . Recycling Units . | . . . . Scanalyzers . | . . . . Garrison Access . | . . . . Total Hacks 10 | . 4 . 6 Successful 10 | . 4 . 6 Failed . | . . . . Catastrophic . | . . . . Database Lockouts . | . . . . Manual 3 | . 3 . . Terminals 4 | . 4 . . Fabricators . | . . . . Repair Stations . | . . . . Recycling Units . | . . . . Scanalyzers . | . . . . Garrison Access . | . . . . Terminal Hacks 7 | . 1 . 6 Record 4 | . . . 4 Open Door 1 | . . . 1 Emergency Access Points 1 | . 1 . . Release Object 1 | . . . 1 Fabricator Hacks . | . . . . Repair Station Hacks . | . . . . Recycling Unit Hacks . | . . . . Scanalyzer . | . . . . Garrison Access Hacks . | . . . . Unauthorized Hacks 3 | . 3 . . Terminals 3 | . 3 . . Botnet 3 | . 3 . . Fabricators . | . . . . Repair Stations . | . . . . Recycling Units . | . . . . Scanalyzers . | . . . . Garrison Access . | . . . . Data Cores Recovered . | . . . . Used . | . . . . Hacking Detections . | . . . . Full Trace Events . | . . . . Feedback Events . | . . . . Feedback Blocked . | . . . . Robot Schematics Acquired . | . . . . Robots Built . | . . . . Authchips . | . . . . Time . | . . . . Total Robot Build Rating . | . . . . Part Schematics Acquired . | . . . . Parts Built . | . . . . Authchips . | . . . . Time . | . . . . Total Part Build Rating . | . . . . Part Studies Acquired . | . . . . Parts Repaired . | . . . . Time . | . . . . Parts Recycled . | . . . . Recycled Matter . | . . . . Retrieved Matter . | . . . . Retrieved Components . | . . . . Parts Scanalyzed . | . . . . Part Schematics Acquired . | . . . . Parts Damaged . | . . . . Bothacking | -11 -10 -10 -10 ------------ Run | Yrd Mat Min Sub Used RIF Installer . | . . . . Robots Hacked . | . . . . Non-combat . | . . . . Combat . | . . . . Robot Hacks Applied . | . . . . Relay Couplers Released . | . . . . Fabnet Peak Effective % . | . . . . Robots Rewired . | . . . . Allies Hacked . | . . . . Hacks Repelled . | . . . . Allies | -11 -10 -10 -10 -------- Run | Yrd Mat Min Sub Total Allies . | . . . . Largest Group . | . . . . Highest-Rated Group . | . . . . Highest-Rated Ally . | . . . . Total Orders . | . . . . Ally Attacks . | . . . . Total Damage . | . . . . Kills . | . . . . Allies Corrupted . | . . . . Allies Melted . | . . . . Intel | -11 -10 -10 -10 ------- Run | Yrd Mat Min Sub Active Infowar (turns) 2846 | 21 440 443 1942 Sensors 2507 | . 122 443 1942 Terrain 2846 | 21 440 443 1942 Structural 1039 | . . . 1039 Robot Analysis Total . | . . . . Derelict Logs Recovered 2 | . . 1 1 Drone Launches . | . . . . Drone Recoveries . | . . . . Exploration | -11 -10 -10 -10 ------------- Run | Yrd Mat Min Sub Turns Passed 2984 | 159 440 443 1942 Spaces Moved 2459 | 123 487 700 1149 Core 48 | 29 6 . 13 Treads 500 | . . . 500 Legs . | . . . . Wheels 126 | 94 32 . . Hover 1586 | . 250 700 636 Flight 199 | . 199 . . Fastest Speed 37 | 50 37 56 56 Average Speed 100 | 74 53 56 151 Slowest Speed 480 | 100 200 56 480 Overloaded Moves . | . . . . Propulsion Burnouts . | . . . . Robots Hopped 1 | . 1 . . Potential Cave-ins . | . . . . Cave-ins Triggered . | . . . . Exploration Rate (%) 55 | 4 65 99 52 Regions Visited 3 Branch Regions 2 Pre-discovered Areas 2 | . . . 2 Known Exits Taken 3 | 1 1 1 . Unknown Exits Taken . | . . . . Scrap Searched 2 | . . 2 . Spaces Dug . | . . . . Terrain Destroyed 4 | . . . 4 Melee . | . . . . Projectile . | . . . . AOE 4 | . . . 4 Terrain Rammed . | . . . . Walls Destroyed . | . . . . Machines Disabled . | . . . . Actions | -11 -10 -10 -10 --------- Run | Yrd Mat Min Sub Total 2830 | 157 616 747 1310 Wait 212 | 4 58 30 120 Move 2454 | 122 484 699 1149 Hop 1 | . 1 . . Pick Up 26 | 6 14 3 3 Fast Attach 11 | 4 2 5 . Attach 19 | 2 10 . 7 Detach 8 | . 6 . 2 Swap 6 | 1 3 . 2 Drop 18 | 2 9 7 . Fire 73 | 16 28 2 27 Melee . | . . . . Ram 2 | . 1 1 . Kick . | . . . . Crush . | . . . . Escape Stasis . | . . . . Rewire . | . . . . Trap . | . . . . Miscellaneous . | . . . . Route ------- -11/Scrapyard -10/Materials (discovered 2 exits: *Min / *Sub) -10/Mines (discovered 3 exits: *Mat x2 / *Sub) -10/Subcaves (discovered 3 exits: *Mat x2 / *Rec) History --------- Turn | Location | Event 18 | -11/Scrapyard | Identified exit to Materials 18 | -11/Scrapyard | Discovered exit to Materials (range 15) 160 | -11/Scrapyard | Entered Materials 160 | -10/Materials | Evolved 1 slot: Utility x1 228 | -10/Materials | Identified exit to Mines 228 | -10/Materials | Discovered exit to Mines (range 8) 303 | -10/Materials | Build established: Hacker-Mutant 349 | -10/Materials | Identified exit to Subcaves 349 | -10/Materials | Discovered exit to Subcaves (range 10) 600 | -10/Materials | Entered Mines 626 | -10/Mines | Identified exit to Materials 626 | -10/Mines | Discovered exit to Materials (range 10) 695 | -10/Mines | Assembled infested the area 700 | -10/Mines | Assisted by a Guerilla fighting off Assembled 721 | -10/Mines | YI-UF0 nonchalantly dropped a Grenade Launcher on the ground 723 | -10/Mines | Learned Materials stockpile data 786 | -10/Mines | Build established: Hacker-Scout 815 | -10/Mines | Discovered exit to Subcaves (range 6) 884 | -10/Mines | Discovered exit to Materials (range 4) 950 | -10/Mines | Joined a pair of Derelicts in attacking an 0b10 outpost 1043 | -10/Mines | Entered Subcaves 1143 | -10/Subcaves | A swath of the cavern ceiling suddenly collapsed 1276 | -10/Subcaves | Visited Clippyterm 1277 | -10/Subcaves | Learned location of Section 7 (-2) 1289 | -10/Subcaves | Learned Materials stockpile data 1291 | -10/Subcaves | Identified exit to Materials 1291 | -10/Subcaves | Discovered exit to Materials (range 16) 1415 | -10/Subcaves | A swath of the cavern ceiling suddenly collapsed 1456 | -10/Subcaves | Discovered exit to Materials (range 5) 1646 | -10/Subcaves | Learned location of Zion (-6) 1646 | -10/Subcaves | Met a Zionite searching for "candidates" 1801 | -10/Subcaves | Build established: Hacker-Skirmisher 1863 | -10/Subcaves | A Subdweller sparked back to life 1863 | -10/Subcaves | A Subdweller sparked back to life 1863 | -10/Subcaves | A Subdweller sparked back to life 1885 | -10/Subcaves | Core integrity fell below 50% 1921 | -10/Subcaves | Core integrity fell below 20% 1922 | -10/Subcaves | Lost 4 parts (1p1n2w) 1944 | -10/Subcaves | Found Prototype Power Core 1945 | -10/Subcaves | Identified Meta Core 1946 | -10/Subcaves | Attached Meta Core, gained temporary slots: Propulsion, Utility, Weapon 2162 | -10/Subcaves | Found SUBCON Basin 2177 | -10/Subcaves | Build established: Hacker-Mutant 2973 | -10/Subcaves | Identified exit to Recycling 2973 | -10/Subcaves | Discovered exit to Recycling (range 16) 2985 | -10/Subcaves | Destroyed by Autobeam Turret with Autobeam Last Messages --------------- slot. 01946_ Core temporarily expanded with Utility slot. 01946_ Core temporarily expanded with Weapon slot. 01947_ Acquired 20 matter. 02155_ Discarded Terrain Scan Processor. 02162_ Acquired SUBCON Basin. 02163_ System corrupted: Energy discharge (-68). 02225_ Acquired 10 matter. 02356_ Subatomizers dissect the Corrupted Disposable Heat Sink. 02525_ System corrupted: Matter fused (-10). 02678_ System corrupted: Heat flow error (+263). 02906_ System corrupted: Energy discharge (-68). 02921_ Beamcaster destroyed. 02947_ Subatomizers dissect the Flight Unit. 02960_ Subatomizers dissect the Flight Unit, destroying it. 02973_ EXIT=FOUND: RECYCLING Map ----- +----------------------------------------------------+ | #### ############## ###?#?#?#??##??###### | | ??### ##### ######### ########?######?###### | | ##?###### ######## ######?#?##?#?######## | | ###?#### ## ###???##########??## | | ??###### ######??#??####?###### | | ##?#### #####???????#?######## | | ????### ####### #######???##??#?#### | | ????### ########## #######??#?#?#?###### | | ???#### #######??### #### ##??##??????#?#? | | ?#???## #####?##??## ## ##???##??######? | | ????### ####?# ##?## ####?#??#?#?###? | | ??#?## ###?# #### #####??#??#?##### | | ??#?## ### ##?#### #####?#?##????##### | | #?#?### ## ######## #####?????#???##?#? | | ?#??#### ##??#### ##?????#???????#?? | | ????##### ###???### ###?#???#???????### | | ??????#### ### #?##?#### ###???#????????#### | | #??????########## #?##### ##??##??#????????## | | ??#?########?############ ##?#?????#???#???## | | ?#??# ##?############# ######?????????????? | | ##??# #?# ## # # #######???????????#? | | "#??# #### ## ##?###??????????? | | "#???# ## ####???????????#? | | "###### # & ### ??#??????????? | | ## ## ## ## ####; *% ####?? ? ?????????? | | # ##### ##### %%[@ # #####?? ???????????? | | # ###?## ### % #######? ?? ?????????? | | ##??#### # # ;; #####?? ?????????????? | | ##??#??# # #### ##????#? ? ???????????? | | ##?#?????""# ####### ##??#?????????????????? | | #?????#?### ####?## ###?#??? ?????????????? | | ###??????#?????### ##???#??##????????????? | | ####?????????#?" ????????????????????? | | ##?#?#???#?????? ? ???#???#????????????? | | ###?###??????? ??? ? ???????????????????? | | #???#???#?????????? t t "#????#?????????????? | | #??????????? ?? ??? " " "##?????????????????? | | ####????????????####???????????????????? | | ????#????##??#????##?#########???????????????????? | | ????#??????????????????####??????????????????????? | | ??????????????""?#???????????????????????????????? | | ????????????????????#????????????????????????????? | | #????????????????????????????????????????????????? | | ?????????????????????????????????????????????????? | | ?????????????????????????????????????????????????? | | ?????????????????????????????????????????????????? | | ?????????????????????????????????????????????????? | | ?????????????????????????????????????????????????? | | ?????????????????????????????????????????????????? | +----------------------------------------------------+ Best States ------------- Heat Dissipation 25 Energy Generation 17 Energy Capacity 200 Matter Stores 300 Matter Capacity 300 Sight Range 16 Robot Scan Range 14 Terrain Scan Range 16 Terrain Scan Density 160 Resistance: KI 35 Resistance: TH 35 Resistance: EX 35 Resistance: EM 35 Resistance: I 35 Resistance: S 35 Resistance: P 35 Evasion (%) 62 Recoil Reduction 2 Offensive Hacking 20 Item Schematics ----------------- None Robot Schematics ------------------ None Fabricated ------------ Nothing Repaired ---------- Nothing Studied --------- None Alien Tech Used ----------------- None Achievements -------------- None Challenges ------------ None Game ------ Seed BiomechanicalSpectralSabre Manual? 0 Play Time 00:19:24 Cumulative 170.0 hours Start 2025.12.05 @ 09:45:28 End 2025.12.05 @ 10:02:08 Sessions 1 Manual Loads 0 Difficulty Explorer Special Mode None Game No. 231 Rogue 0 Adventurer 0 Explorer 231 Win Type - Total 0 Types 0/0/0/0/0/0/0/0/0/0 Lore% 70 Gallery% 67 Achievement% 52 Wizard Run 0 Options --------- Layout 1 ASCII 0 Keyboard 0 Movement Mouse Keybinds 0 Fullscreen 1 Font 24/Smallcaps Map View 50x35 Zoom Use 0% Tactical HUD 1 Map Filters NONE Filters NONE Steam 1 RUN: 32015dd4-3571-44e8-a57a-db12251458a4